[Event "Asian Amateur-ch Open 2022"]
[Site "Muscat"]
[Date "2022.10.03"]
[Round "6.9"]
[White "UMER S.M"]
[Black "Srivatsan Karthikeyan"]
[Result "0-1"]
[ECO "A46"]
[WhiteElo "1631"]
[BlackElo "1711"]
[Annotator "NA RC COMBH"]
[PlyCount "50"]
[EventDate "2022.09.29"]
[EventType "swiss"]
[SourceTitle "playchess.com"]
[Source "ChessBase"]
[SourceQuality "1"]
[TimeControl "5400+30"]

1. d4 {[%emt 0:00:04]} Nf6 {[%emt 0:00:26]} 2. Nf3 {[%emt 0:00:03]} e6 {[%emt 0:00:07]} 3. Bf4 {[%emt 0:00:05]} c5 {[%emt 0:00:09]} 4. e3 {[%emt 0:00:02]} Qb6 {[%emt 0:00:06]} 5. Na3 {[%emt 0:00:20]} d5 {[%emt 0:00:27]} 6. Nb5 {[%emt 0:00:20]} Na6 {[%emt 0:00:05]} 7. a4 {[%emt 0:03:41]} c4 {[%emt 0:06:46]} 8. c3 {[%emt 0:04:00]} Bd7 {[%emt 0:03:12]} 9. b3 {[%emt 0:01:13]} Bxb5 {[%emt 0:20:30]} 10. axb5 {[%emt 0:00:02]} Qxb5 {[%emt 0:00:06]} 11. bxc4 {[%emt 0:00:38]} dxc4 {[%emt 0:00:05]} 12. Ne5 {[%emt 0:02:09]} Rc8 {[%emt 0:02:32]} 13. Rb1 {[%emt 0:03:43]} Qa5 {[%emt 0:00:37]} 14. Rxb7 {[%emt 0:05:11]} Qxc3+ {[%emt 0:00:29]} 15. Ke2 {[%emt 0:00:42]} Qa5 {[%emt 0:09:25]} 16. Qb1 {[%emt 0:15:27]} Nd5 {[%emt 0:05:19]} 17. Kf3 {[%emt 0:04:05]} Nc3 {[%emt 0:08:22]} 18. Qb2 {[%emt 0:11:55]} Ba3 {[%emt 0:00:11]} 19. Qxa3 {[%emt 0:17:48]} Qxa3 {[%emt 0:01:14]} 20. Nxc4 {[%emt 0:04:42]} Rxc4 {[%emt 0:02:27]} 21. Bxc4 {[%emt 0:00:02]} Qa4 {[%emt 0:00:12]} 22. Bxa6 {[%emt 0:03:00]} Qxa6 {[%emt 0:00:11]} 23. Rb8+ {[%emt 0:02:13]} Ke7 {[%emt 0:00:23]} 24. Rxh8 {[%emt 0:00:45]} Qe2+ {[%emt 0:03:11]} 25. Kg3 {[%emt 0:00:02]} Ne4+ {[%emt 0:00:03]} 0-1

[Event "Asian Amateur-ch Open 2022"]
[Site "Muscat"]
[Date "2022.10.03"]
[Round "6.10"]
[White "Maasarani, Mahmoud"]
[Black "Muhammed, Zahid"]
[Result "1/2-1/2"]
[ECO "E16"]
[WhiteElo "1991"]
[BlackElo "1677"]
[Annotator "TA"]
[PlyCount "105"]
[EventDate "2022.09.29"]
[EventType "swiss"]
[SourceTitle "playchess.com"]
[Source "ChessBase"]
[SourceQuality "1"]
[TimeControl "5400+30"]

{[%evp 16,105,9,-6,36,36,30,0,9,-15,0,0,0,-12,-22,-17,0,-53,-52,-76,-76,-79,-77,-79,-85,-77,-60,-66,-27,-100,-20,-18,-16,-28,-8,-12,-4,-26,-2,-51,-38,-54,-26,-29,-15,-12,-12,-13,-7,-32,-32,-74,-37,-47,-48,-89,-89,-91,-69,-69,-16,-69,-14,-19,-29,-164,0,0,0,0,0,0,0,-145,0,0,0,0,0,0,0,0,0,0,0,0,0,0,0,0,0,0]} 1. d4 {[%emt 0:00:05]} Nf6 {[%emt 0:00:21]} 2. Nf3 {[%emt 0:00:10]} e6 {[%emt 0:00:22]} 3. g3 {[%emt 0:00:40]} b6 {[%emt 0:01:56]} 4. Bg2 {[%emt 0:01:13]} Bb7 {[%emt 0:00:21]} 5. O-O {[%emt 0:00:19]} c5 {[%emt 0:00:50]} 6. c4 {[%emt 0:10:26]} cxd4 {[%emt 0:01:04]} 7. Qxd4 {[%emt 0:02:30]} Bc5 {[%emt 0:00:56]} 8. Qd1 {[%emt 0:03:00]} O-O {[%emt 0:00:24]} 9. Nc3 {[%emt 0:00:55]} d6 {[%emt 0:10:11] E16: Queen's Indian: 4 g3 Bb7 5 Bg2 Bb4+.} 10. a3 {[%emt 0:10:16] [#] Strongly threatening b4.} a5 {[%emt 0:01:10] [#] Prevents b4.} 11. Na4 $146 {[%emt 0:08:11]} ({Predecessor:} 11. Qc2 h6 12. b3 Qe7 13. Bb2 Nbd7 14. e4 e5 15. Rad1 Nb8 16. Nh4 g6 17. Qd2 Kg7 18. Rfe1 {1-0 (45) Sharbel,M (1937)-Slim,N Beirut 2017}) 11... Nbd7 {[%emt 0:03:05]} 12. Bg5 {[%emt 0:02:26]} h6 {[%emt 0:00:26]} 13. Bxf6 {[%emt 0:01:19]} Nxf6 {[%emt 0:05:22]} ({Don't take} 13... gxf6 14. Qd2 $16) 14. Nd4 {[%emt 0:19:57]} Bxg2 {[%emt 0:00:39]} 15. Kxg2 {[%emt 0:00:01]} d5 {[%emt 0:03:22]} 16. Nxc5 {[%emt 0:00:25]} (16. cxd5 $11 Qxd5+ 17. Nf3) 16... bxc5 $15 {[%emt 0:00:08]} 17. Nb3 {[%emt 0:03:45]} Qb6 {[%emt 0:04:16]} 18. cxd5 {[%emt 0:03:26]} exd5 {[%emt 0:00:25]} 19. Qc2 {[%emt 0:00:13]} c4 {[%emt 0:01:17]} 20. Nd2 {[%emt 0:00:30]} Rab8 {[%emt 0:03:26]} 21. Rab1 {[%emt 0:00:19]} Rfe8 {[%emt 0:02:45] Inhibits e4.} (21... Ng4 {is interesting.} 22. Kg1 Qc5 23. Qf5 Ne3) 22. e3 {[%emt 0:04:20]} (22. b3 $11) 22... Ne4 {[%emt 0:07:39]} (22... Qc6 $17 {With the idea ...Ng4.} 23. Kg1 Rb6) 23. Nxe4 $11 {[%emt 0:01:47]} Rxe4 {[%emt 0:00:04]} 24. Rfd1 {[%emt 0:00:12]} Re5 {[%emt 0:05:57]} 25. Rd4 {[%emt 0:01:08]} Qb3 {[%emt 0:01:28]} 26. Qd1 {[%emt 0:11:53]} Qxd1 {[%emt 0:00:53]} 27. Rdxd1 {[%emt 0:00:22][%mdl 4096] Endgame KRR-KRR} (27. Rbxd1 $11 {is superior.} Rxb2 28. Rxd5 Rxe3 29. Rxa5) 27... a4 {[%emt 0:01:58]} 28. Rdc1 {[%emt 0:00:18]} Kf8 {[%emt 0:00:49]} 29. Rc2 {[%emt 0:00:06]} Re6 {[%emt 0:01:16]} 30. Rd1 {[%emt 0:00:10]} Rb5 {[%emt 0:02:19]} 31. Rd4 {[%emt 0:03:00]} Reb6 {[%emt 0:08:58]} 32. Rdd2 {[%emt 0:00:50][%cal Oe3e4]} f5 {[%emt 0:00:31]} 33. h4 {[%emt 0:00:19]} Ke7 {[%emt 0:00:05]} 34. Kf3 {[%emt 0:03:26]} Kf6 {[%emt 0:02:30]} 35. Ke2 {[%emt 0:02:40]} Ke6 {[%emt 0:03:23]} 36. Kd1 {[%emt 0:00:32]} Rb3 {[%emt 0:00:33]} 37. Kc1 {[%emt 0:00:13]} Ke5 {[%emt 0:02:47]} (37... h5 $15) 38. Rd4 {[%emt 0:00:50]} ({White should play} 38. h5 $1 $11) 38... g5 {[%emt 0:03:48]} (38... h5 $15) 39. hxg5 {[%emt 0:02:32]} hxg5 {[%emt 0:00:03]} 40. Rdd2 {[%emt 0:00:41]} (40. f4+ $1 $11 gxf4 41. gxf4+ Ke6 42. Rh2) 40... c3 $2 {[%emt 0:08:51]} (40... Rd3 $19 {aiming for ...g4.} 41. Rd1 Rxd1+ 42. Kxd1 f4 43. exf4+ gxf4 44. Re2+ Kf5 45. gxf4 Kxf4) 41. Rxc3 {[%emt 0:01:25]} Rxc3+ {[%emt 0:00:02]} 42. bxc3 {[%emt 0:00:06] KR-KR} Rb3 $1 {[%emt 0:00:25][%csl LRa3,LRc3]} 43. Kc2 {[%emt 0:00:25]} Rxa3 {[%emt 0:00:14]} 44. Kd3 {[%emt 0:00:26] [#]} (44. f4+ $11 gxf4 45. exf4+ Kd6 46. Rd4) 44... Ra1 {[%emt 0:00:28]} (44... g4 $1 $17 {Threatens to win with ...Ra1.} 45. Rb2 Ra1) 45. f4+ {[%emt 0:00:24] The position is equal.} gxf4 {[%emt 0:00:18]} 46. gxf4+ {[%emt 0:00:02]} Ke6 {[%emt 0:00:20]} 47. c4 {[%emt 0:00:22]} Ra3+ {[%emt 0:01:11]} 48. Kd4 {[%emt 0:01:26]} dxc4 {[%emt 0:00:21][%cal Oa3d3] ( -> ...Rd3+!)} 49. e4 {[%emt 0:01:29]} fxe4 {[%emt 0:02:22]} 50. Kxe4 {[%emt 0:00:10]} Rh3 {[%emt 0:05:18]} 51. Rc2 {[%emt 0:00:39]} c3 {[%emt 0:02:44]} 52. Ra2 {[%emt 0:00:01]} Kd6 {[%emt 0:03:30]} 53. Kd4 {[%emt 0:04:40] Weighted Error Value: White=0.24 (precise) /Black=0.23 (precise)} 1/2-1/2

[Event "Asian Amateur-ch Open 2022"]
[Site "Muscat"]
[Date "2022.10.03"]
[Round "6.11"]
[White "Musallam Salim Al Aamri"]
[Black "Alharthi, Ahmed Mohammed A"]
[Result "1-0"]
[ECO "B01"]
[WhiteElo "1680"]
[BlackElo "1950"]
[Annotator "TA"]
[PlyCount "65"]
[EventDate "2022.09.29"]
[EventType "swiss"]
[SourceTitle "playchess.com"]
[Source "ChessBase"]
[SourceQuality "1"]
[TimeControl "5400+30"]

{[%evp 17,65,39,43,10,33,18,47,0,37,15,4,11,31,10,30,-7,26,34,93,18,14,16,56,55,56,43,90,76,569,70,156,76,129,122,112,115,115,127,137,-18,82,75,53,33,46,35,108,69,885,856]} 1. e4 {[%emt 0:00:03]} d5 {[%emt 0:00:12]} 2. exd5 {[%emt 0:00:41]} Nf6 {[%emt 0:00:14]} 3. Nf3 {[%emt 0:00:48]} Qxd5 {[%emt 0:00:26]} 4. Nc3 {[%emt 0:00:41]} Qa5 {[%emt 0:00:18]} 5. d4 {[%emt 0:01:54]} Bf5 {[%emt 0:00:52]} 6. Bd2 {[%emt 0:01:16]} Nbd7 {[%emt 0:02:27]} 7. Bc4 {[%emt 0:19:52]} c6 {[%emt 0:01:38]} 8. Qe2 {[%emt 0:09:26]} Qc7 {[%emt 0:02:15] The main line 8...Qc7 scores better than 8...e6.} 9. O-O-O {[%emt 0:06:57]} e6 {[%emt 0:01:48]} 10. h3 {[%emt 0:00:31] B01: Scandinavian Defence.} h5 {[%emt 0:02:38]} (10... Bb4 {is interesting.} 11. g4 Bg6 12. Kb1 a5) 11. Rhe1 {[%emt 0:07:04]} O-O-O {[%emt 0:03:07] [#]} 12. Bg5 $146 {[%emt 0:05:37]} (12. Kb1 $14) ({Predecessor:} 12. Ne5 Nxe5 13. dxe5 Nd7 14. Bf4 Bb4 15. Qe3 Nb6 16. Bb3 c5 17. a3 Ba5 18. Bg5 Rxd1+ 19. Rxd1 {½-½ (53) Sinnhoefer,L (1128)-Lohr,M (1420) Magdeburg 2014}) 12... Bd6 {[%emt 0:03:51]} (12... Bb4 $5 {[%cal Rb4c3]}) 13. Ne5 {[%emt 0:02:22]} Nb6 {[%emt 0:06:04]} 14. Bb3 {[%emt 0:08:31]} Nbd5 {[%emt 0:18:43]} 15. Na4 {[%emt 0:07:53][%cal Bc3a4,Ba4c5,Bc5e4][%mdl 32]} Rde8 {[%emt 0:06:03]} 16. f3 {[%emt 0:04:20] Prevents Ne4.} (16. Qf3 $5 {[%cal Rc2c4]}) 16... Nh7 {[%emt 0:05:44]} 17. Bd2 {[%emt 0:02:27]} f6 {[%emt 0:01:13] [#]} ({Black should play} 17... Nf8 $14) 18. Nd3 {[%emt 0:00:31]} (18. g4 $1 $16 {[%cal Rg4f5]}) 18... h4 {[%emt 0:01:54]} 19. Nac5 {[%emt 0:01:30]} g5 {[%emt 0:01:49]} 20. Ne4 {[%emt 0:03:23]} Bh2 {[%emt 0:07:54]} 21. Kb1 {[%emt 0:01:00]} Qg7 {[%emt 0:04:49]} (21... Rd8 $14 {deserves consideration.}) 22. Ndc5 {[%emt 0:04:39] And now g4 would win.} Nf8 $2 {[%emt 0:05:59][%mdl 8192]} (22... Qc7 $16 {is a better chance.}) 23. Qc4 $2 {[%emt 0:02:04]} ({White must play} 23. g4 $18) 23... Ng6 {[%emt 0:01:28]} ({Black should try} 23... Nd7 $14) 24. Qa4 {[%emt 0:00:47]} (24. g4 $142 hxg3 25. Nd6+ Kb8 26. Ncxb7) 24... Bb8 {[%emt 0:00:49]} ({Better is} 24... Kb8) 25. Bc4 {[%emt 0:01:59]} Nb6 {[%emt 0:03:24]} 26. Qb3 {[%emt 0:00:22] White is much more active.} Nxc4 {[%emt 0:00:58]} 27. Qxc4 {[%emt 0:00:01]} Nf4 {[%emt 0:01:18]} 28. Qb3 $2 {[%emt 0:01:35]} (28. Bxf4 $16 gxf4 29. b4) 28... Rhf8 {[%emt 0:04:42]} (28... Nxg2 $11 {keeps the balance.} 29. Rg1 (29. Nxf6 Re7 $17) 29... Nf4 30. Nxf6 Re7 31. Bxf4 Bxf4) 29. Bxf4 $16 {[%emt 0:00:44]} Bxf4 {[%emt 0:00:09]} 30. a4 {[%emt 0:00:55]} b6 {[%emt 0:04:53]} 31. Nd3 {[%emt 0:00:17] Pair of Knights!} Qd7 {[%emt 0:01:00]} (31... Qc7 $14) 32. Qc4 {[%emt 0:01:00]} Kb7 $2 {[%emt 0:01:26][%mdl 8192] [#]} (32... Bg3 $14) 33. Ndc5+ $1 {[%emt 0:00:25][%mdl 512] Weighted Error Value: White=0.47/Black=0.53} 1-0

[Event "Asian Amateur-ch Open 2022"]
[Site "Muscat"]
[Date "2022.10.03"]
[Round "6.12"]
[White "Rafee, Mohd Hayel"]
[Black "Al Zadjali, Abdul Rahman"]
[Result "1-0"]
[ECO "B27"]
[WhiteElo "1941"]
[BlackElo "1534"]
[Annotator "TA"]
[PlyCount "89"]
[EventDate "2022.09.29"]
[EventType "swiss"]
[SourceTitle "playchess.com"]
[Source "ChessBase"]
[SourceQuality "1"]
[TimeControl "5400+30"]

{[%evp 14,89,2,4,16,12,39,26,74,25,25,14,25,2,6,12,20,0,0,4,98,47,99,99,106,93,83,91,88,-17,333,296,306,292,394,391,386,384,370,341,545,545,536,230,321,326,348,332,268,139,613,613,593,607,570,530,395,220,233,211,318,314,872,739,692,341,396,387,904,904,960,939,960,960,901,886,960,960]} 1. e4 {[%emt 0:00:04]} c5 {[%emt 0:00:43]} 2. Nf3 {[%emt 0:00:05]} g6 {[%emt 0:00:24]} 3. d4 {[%emt 0:00:08]} cxd4 {[%emt 0:00:17]} 4. Qxd4 {[%emt 0:00:06]} Nf6 {[%emt 0:00:09]} 5. Nc3 {[%emt 0:00:04]} Nc6 {[%emt 0:00:05]} 6. Qa4 {[%emt 0:00:05]} d6 {[%emt 0:00:10]} 7. e5 {[%emt 0:00:34]} dxe5 {[%emt 0:00:05]} 8. Nxe5 {[%emt 0:00:06]} Bd7 {[%emt 0:00:02] B27: Sicilian: 2 Nf3, unusual Black 2nd moves.} 9. Nxd7 {[%emt 0:01:05]} Qxd7 {[%emt 0:00:15]} 10. Be3 {[%emt 0:09:26]} Qg4 {[%emt 0:02:22] [#]} (10... a6 $11) 11. Bc4 $146 {[%emt 0:03:12]} (11. Qb3 $16 Qc8 12. Be2) ({Predecessor:} 11. Qb3 O-O-O 12. Qxf7 Nb4 13. Qb3 Nfd5 14. Be2 Qxg2 15. O-O-O e6 16. Rhg1 Qxh2 17. Bg4 Nc7 18. Bxe6+ Nxe6 19. Qxe6+ Kc7 20. Nb5+ Kb8 21. Rxd8# {1-0 (21) Polok,K (2245)-Schut,H (2101) Chess.com INT 2021}) 11... Bg7 $11 {[%emt 0:07:22]} 12. O-O {[%emt 0:01:30]} O-O {[%emt 0:01:23]} 13. h3 {[%emt 0:00:21]} Qc8 {[%emt 0:01:49]} 14. Rad1 {[%emt 0:02:32][%cal Ba1d1,Bd1d2,Bd2d4][%mdl 32]} a6 {[%emt 0:01:56] And now ...b5 would win.} 15. Bb3 {[%emt 0:12:16]} b5 {[%emt 0:04:47]} 16. Qh4 {[%emt 0:00:17]} Ne5 {[%emt 0:08:41]} (16... Qb7 $11) 17. Bd5 {[%emt 0:00:24] White has more active pieces. The black rooks are badly placed.} (17. Nd5 $16 Qb7 18. Bg5) 17... Nxd5 {[%emt 0:04:41]} ({Better is} 17... Nc6 $1 $14) 18. Nxd5 $16 {[%emt 0:00:23][%cal Bc3d5,Bd5f4,Bf4e6][%mdl 32]} Qxc2 {[%emt 0:06:08]} 19. Rd2 {[%emt 0:01:30]} (19. Qxe7 Kh8 $14) 19... Qc4 {[%emt 0:01:36]} 20. Rd4 {[%emt 0:00:16]} ({Much worse is} 20. Qxe7 $6 Qxa2 21. b4 Qc4 $11) 20... Qe2 {[%emt 0:09:42]} 21. Qxe7 {[%emt 0:05:20]} ({White should try} 21. Nxe7+ $16 Kh8 22. Bd2) 21... f6 $2 {[%emt 0:09:14][%mdl 8192]} (21... Rae8 $11 {and Black is okay.} 22. Qh4 Qxb2) 22. Nf4 $18 {[%emt 0:06:26]} Qxb2 {[%emt 0:05:00]} 23. Ne6 {[%emt 0:00:20][%csl Ge6][%cal Re7g7]} (23. Rd2 Qc3 $18) 23... Rf7 {[%emt 0:00:20]} 24. Rd8+ {[%emt 0:00:04]} Rxd8 {[%emt 0:00:08]} 25. Qxd8+ {[%emt 0:00:21]} Bf8 {[%emt 0:00:15]} 26. Bh6 $1 {[%emt 0:16:07][%cal Rh6f8]} Nd7 {[%emt 0:00:56]} (26... Qa3 $142 27. Bxf8 Rxf8 28. Nxf8 Qxf8) 27. Nxf8 {[%emt 0:05:56]} Nxf8 {[%emt 0:00:18]} 28. Re1 {[%emt 0:00:07] Inhibits Qe2.} ({Not} 28. Qd5 Qe5 29. Qxe5 fxe5 $16) (28. Rc1 $142) 28... Qb4 {[%emt 0:06:20]} (28... Qxa2 $2 29. Re8 Qa3 30. Qd5 $18) 29. Re8 {[%emt 0:00:15]} Qc5 {[%emt 0:00:30] Prevents Qd5.} 30. a3 {[%emt 0:05:11]} g5 {[%emt 0:00:45] [#]} (30... Qxa3 $2 31. Qd5 $18) 31. Kh2 {[%emt 0:01:55]} (31. g3 $1 $18) 31... b4 $2 {[%emt 0:02:03][%mdl 8192] This costs Black the game.} (31... a5 $16 32. Qxa5 Qxf2) 32. axb4 {[%emt 0:14:54]} Qxb4 {[%emt 0:00:12]} 33. g3 {[%emt 0:00:08] Against Qf4} Qc5 {[%emt 0:00:35] [#]} 34. Qd2 {[%emt 0:00:20]} Qc6 {[%emt 0:02:31]} 35. Qe2 $40 {[%emt 0:01:51][%mdl 128] White wants a kill.} (35. Rd8 $142 {Qb4 would kill now.} f5 36. Rd6) 35... f5 {[%emt 0:05:35]} 36. Bxg5 {[%emt 0:02:12]} Qg6 {[%emt 0:00:23]} (36... h6 {was worth a try.}) 37. Qe3 {[%emt 0:00:57]} Kg7 $2 {[%emt 0:00:54]} (37... h5 38. Rb8 f4 39. Bxf4 Qf5) 38. Qe5+ {[%emt 0:02:51]} Kg8 {[%emt 0:00:15]} 39. Bd2 {[%emt 0:01:00]} (39. Be7 $142) 39... Qf6 {[%emt 0:02:43]} 40. Qc5 {[%emt 0:00:25] Hoping for Bc3.} Qg6 $2 {[%emt 0:00:52]} (40... f4) 41. Bb4 {[%emt 0:00:33][%cal Re8f8] White is clearly winning.} Qh6 {[%emt 0:00:34]} 42. Bc3 {[%emt 0:00:32]} f4 {[%emt 0:01:41]} 43. Qd4 {[%emt 0:00:52][%csl Gc3][%cal Rd4h8]} fxg3+ {[%emt 0:00:37]} 44. fxg3 {[%emt 0:00:16][%csl Gc3][%cal Rd4h8]} Rf3 {[%emt 0:01:38]} 45. Re7 {[%emt 0:04:24] Weighted Error Value: White=0.38/Black=0.73} 1-0

[Event "Asian Amateur-ch Open 2022"]
[Site "Muscat"]
[Date "2022.10.03"]
[Round "6.13"]
[White "Khalili, Mehdi"]
[Black "Shahali, Milad"]
[Result "0-1"]
[ECO "A47"]
[WhiteElo "1575"]
[BlackElo "1910"]
[Annotator "TA"]
[PlyCount "124"]
[EventDate "2022.09.29"]
[EventType "swiss"]
[SourceTitle "playchess.com"]
[Source "ChessBase"]
[SourceQuality "1"]
[TimeControl "5400+30"]

{[%evp 9,124,45,45,13,13,8,13,6,8,0,0,-7,0,-16,-9,-21,2,-15,-8,-3,0,0,-1,-33,-29,-43,0,-80,-82,-73,-69,-74,-72,-124,-124,-124,-124,-214,-209,-209,-209,-209,-209,-209,-209,-227,-227,-229,-220,-214,-209,-237,-238,-226,-209,-220,-216,-247,-235,-243,-236,-347,-357,-348,-354,-424,-421,-427,-426,-443,-443,-502,-433,-565,-547,-671,-671,-645,-650,-670,-665,-682,-673,-797,-730,-855,-846,-820,-827,-813,-814,-840,-714,-1006,-993,-1127,-1125,-1453,-1412,-1242,-965,-1255,-876,-1779,-1722,-5297,-4854,-4927,-4787,-29983,-29984,-29983,-29984,-29989,-29990,-29992,-29993]} 1. d4 {[%emt 0:00:03]} Nf6 {[%emt 0:00:07]} 2. Nf3 {[%emt 0:00:16]} b6 {[%emt 0:00:13]} 3. Bg5 {[%emt 0:02:36]} Bb7 {[%emt 0:00:52]} 4. Nbd2 {[%emt 0:00:24]} h6 {[%emt 0:09:13]} 5. Bxf6 {[%emt 0:17:02]} exf6 {[%emt 0:03:41]} 6. g3 {[%emt 0:10:15] A47: 1 d4 Nf6 2 Nf3 b6: Torre, London and Colle Systems.} f5 {[%emt 0:03:12]} 7. Bg2 {[%emt 0:01:25]} g6 {[%emt 0:00:19]} 8. O-O {[%emt 0:00:28] The position is equal.} Bg7 {[%emt 0:00:12] [#]} 9. c3 $146 {[%emt 0:01:54]} ({Predecessor:} 9. e3 O-O 10. Ne1 Bxg2 11. Nxg2 d6 12. a4 a6 13. a5 b5 14. c4 c6 15. b4 {1-0 (33) Stripunsky,A (2492)-Rodchenkov,S (2346) Chess.com INT 2020}) 9... O-O {[%emt 0:00:49]} 10. a4 {[%emt 0:08:58]} a5 {[%emt 0:00:42]} 11. Re1 {[%emt 0:03:12]} Re8 {[%emt 0:01:24]} 12. e3 {[%emt 0:14:24]} d6 {[%emt 0:04:03]} 13. Qc2 {[%emt 0:06:52]} Nd7 {[%emt 0:22:19][%cal Bb8d7,Bd7c5,Bc5a6,Ba6b4][%mdl 32]} 14. Rad1 {[%emt 0:11:51]} Qe7 {[%emt 0:10:02]} 15. c4 {[%emt 0:10:25]} Rad8 {[%emt 0:00:58]} 16. d5 {[%emt 0:04:19]} Nc5 {[%emt 0:03:50]} 17. Nd4 {[%emt 0:03:07]} (17. b3) 17... Na6 {[%emt 0:03:53]} 18. Nc6 {[%emt 0:01:04]} (18. N2f3 $11) 18... Bxc6 $17 {[%emt 0:00:06] Black continues to play with concentration.} 19. dxc6 {[%emt 0:00:02]} Nb4 {[%emt 0:00:10]} 20. Qb3 {[%emt 0:00:45]} Qe5 {[%emt 0:00:38]} 21. Nb1 {[%emt 0:00:59]} (21. Rb1 $142) 21... Qxb2 {[%emt 0:00:38]} 22. Qxb2 {[%emt 0:00:01]} Bxb2 {[%emt 0:00:08]} 23. Nd2 {[%emt 0:00:59]} (23. Re2 Bg7 24. Na3) (23. Re2 $17 Bf6 24. Na3) 23... Bc3 {[%emt 0:04:11]} 24. Re2 {[%emt 0:00:24]} Bxd2 {[%emt 0:03:41]} 25. Rexd2 {[%emt 0:00:08]} Re5 {[%emt 0:00:21]} 26. Bd5 {[%emt 0:00:45]} Rde8 {[%emt 0:00:14]} 27. Kg2 {[%emt 0:00:16]} Kg7 {[%emt 0:04:15]} 28. h3 {[%emt 0:00:00]} Kf6 {[%emt 0:03:09]} 29. Kf3 {[%emt 0:00:02]} Na6 {[%emt 0:01:27]} 30. Kg2 {[%emt 0:01:12]} Nc5 {[%emt 0:00:15]} 31. Ra2 {[%emt 0:00:39]} Ne4 {[%emt 0:01:20] Strongly threatening ...Nc3.} 32. Rc2 {[%emt 0:00:18]} g5 {[%emt 0:02:17]} 33. Rb1 {[%emt 0:00:57]} Kg6 {[%emt 0:02:35]} 34. Re1 {[%emt 0:00:46]} Nf6 {[%emt 0:00:50]} 35. Rd1 {[%emt 0:00:10]} (35. Bf3 {was the only defense.}) 35... Nxd5 $19 {[%emt 0:03:44]} 36. cxd5 {[%emt 0:00:49][%mdl 4096] Endgame KRR-KRR} Re4 {[%emt 0:00:11]} 37. Ra1 {[%emt 0:00:09]} Rb4 {[%emt 0:00:27]} 38. Rc3 {[%emt 0:00:39]} Ree4 {[%emt 0:02:32]} 39. Rca3 {[%emt 0:00:01]} Kf6 {[%emt 0:00:30]} 40. f4 {[%emt 0:00:29]} g4 {[%emt 0:02:34]} 41. hxg4 {[%emt 0:01:09]} fxg4 {[%emt 0:00:06]} 42. R1a2 {[%emt 0:00:04]} Kf5 {[%emt 0:00:18]} 43. Kf2 {[%emt 0:00:19]} Rec4 {[%emt 0:00:20]} 44. Ke2 {[%emt 0:01:09]} Ke4 {[%emt 0:00:13]} 45. Kf2 {[%emt 0:00:11]} Kxd5 {[%emt 0:00:30]} 46. Ke2 {[%emt 0:00:38]} Ke4 {[%emt 0:00:57]} 47. Kf2 {[%emt 0:00:42]} Rxc6 {[%emt 0:00:16]} 48. Rd2 {[%emt 0:00:34]} Rc5 {[%emt 0:02:31]} 49. Ra1 {[%emt 0:00:16]} Rh5 {[%emt 0:00:29]} 50. Kg2 {[%emt 0:00:22] Prevents Rh2+.} Rd5 {[%emt 0:00:43]} 51. Re2 {[%emt 0:00:11]} c5 {[%emt 0:00:20]} 52. Rh1 {[%emt 0:00:13]} h5 {[%emt 0:00:06] [#] Hoping for ...c4.} 53. Ra1 {[%emt 0:00:41]} Rd3 {[%emt 0:00:50] And now ...c4 would win.} 54. Kf2 {[%emt 0:00:28]} Rbb3 {[%emt 0:00:33] White must now prevent ...c4.} 55. Rh1 {[%emt 0:00:02]} Rxe3 {[%emt 0:00:14]} 56. Rxe3+ {[%emt 0:00:15]} Rxe3 {[%emt 0:00:02]} 57. Rxh5 {[%emt 0:00:02] KR-KR} Rf3+ {[%emt 0:00:13]} 58. Kg2 {[%emt 0:00:01]} Ra3 {[%emt 0:00:11] [#] ( -> ...c4)} 59. f5 {[%emt 0:00:29]} Ra2+ {[%emt 0:00:07] Black mates.} 60. Kf1 {[%emt 0:00:43]} c4 {[%emt 0:00:35][%cal Bc5c4,Bc4c3][%mdl 32]} 61. f6 {[%emt 0:00:09]} c3 {[%emt 0:00:49]} 62. Ke1 {[%emt 0:00:01]} Ra1+ {[%emt 0:00:19] Weighted Error Value: White=0.42/Black=0.08 (flawless)} 0-1